Cogmind - Beta 9.6 @@@ ROGUE MODE // 2020.07.30 @ 03:46:04 Player: Rusllan Result: Destroyed by G-34 Mercenary with Small Laser Performance ------------- Evolutions (1) 500 Regions Visited (2) 400 Robots Destroyed (56) 280 Value Destroyed (1249) 1249 Prototype IDs (5) 100 Alien Tech Used (0) 0 Bonus (0) 0 TOTAL SCORE: 2529 Bonus ------- None Cogmind --------- Core Integrity 0/400 Matter 264/300 Energy 100/100 System Corruption 0% Temperature Cool (6) Movement Core (350) Ox6 Location -9/Materials Parts ------- > --- POWER (1) -------- (None) > --- PROPULSION (2) --- (None) > --- UTILITY (3) ------ Large Storage Unit > --- WEAPON (3) ------- Heavy Hammer > --- INVENTORY (10) --- Reclamation Unit Peak State ------------ > --- POWER ------------ Ion Engine > --- PROPULSION ------- Aluminum Leg Aluminum Leg > --- UTILITY ---------- Improved Heat Sink Large Storage Unit Targeting Computer > --- WEAPON ----------- Spread Laser Advanced Beam Cannon Improved Assault Rifle > --- INVENTORY -------- Improved Terrain Scanner Reclamation Unit Particle Cannon Particle Cannon Light Assault Rifle Light Cannon Light Cannon [Rating: 17] Favorites ----------- Power Ion Engine Engine Ion Engine Propulsion Aluminum Leg Treads Light Treads Leg Aluminum Leg Hover Unit Hover Unit Flight Unit Flight Unit Utility Large Storage Unit Device Improved Heat Sink Storage Large Storage Unit Processor Targeting Computer Weapon Particle Cannon Energy Gun Spread Laser Energy Cannon Particle Cannon Ballistic Gun Light Assault Rifle Ballistic Cannon Light Cannon Impact Weapon Heavy Hammer Special Melee Weapon Datajack Build | -11 -10 -9 ------- Run | Scr Mat Mat Slots Evolved 2 | . . 2 Power . | . . . Propulsion . | . . . Utility 1 | . . 1 Weapon 1 | . . 1 Parts Attached 70 | 10 34 26 Power 13 | 5 6 2 Engine 13 | 5 6 2 Core . | . . . Reactor . | . . . Propulsion 17 | 2 10 5 Treads 2 | . . 2 Leg 10 | 2 7 1 Wheel . | . . . Hover 2 | . . 2 Flight 3 | . 3 . Utility 11 | 1 6 4 Device 6 | 1 2 3 Storage 4 | . 4 . Processor 1 | . . 1 Hackware . | . . . Protection . | . . . Artifact . | . . . Weapon 29 | 2 12 15 Energy Gun 4 | . 2 2 Energy Cannon 9 | . 5 4 Ballistic Gun 10 | 2 4 4 Ballistic Cannon 3 | . 1 2 Launcher . | . . . Special Weapon . | . . . Impact Weapon 1 | . . 1 Slashing Weapon . | . . . Piercing Weapon . | . . . Special Melee Weapon 2 | . . 2 Unidentified Prototypes 1 | . . 1 Parts Lost 25 | . 4 21 Power 4 | . 1 3 Propulsion 7 | . 2 5 Utility 4 | . . 4 Weapon 10 | . 1 9 Highest Loss Streak 8 | . 2 8 Average Slot Usage (%) 90 | . 94 83 Engine 11 | . 13 8 Leg 21 | . 26 12 Hover 1 | . . 5 Device 12 | . 11 14 Storage 12 | . 14 11 Energy Gun 2 | . 2 3 Energy Cannon 11 | . 12 10 Ballistic Gun 6 | . 7 3 Ballistic Cannon 6 | . 5 9 Naked Turns . | . . . Heaviest Build 35 | 7 29 35 Greatest Support 40 | 20 20 40 Greatest Overweight (x) 6 | . 6 4 Average Overweight (x) . | . . 1 Largest Inventory Capacity 10 | 4 10 10 Average Capacity 8 | 4 8 10 Most Carried 10 | 4 7 10 Average Carried 4 | 1 4 5 Final Capacity 10 | 4 10 10 Final Carried 6 | 3 6 1 Class Distribution -------------------- 56% | Mutant 20% | Scavenger-Mutant 11% | Gunner 6% | Tank 4% | Scavenger-Gunner Dominant Class ---------------- Mutant | -10/Materials Gunner | -9/Materials Resources | -11 -10 -9 ----------- Run | Scr Mat Mat Matter Collected 1369 | 262 528 579 Remotely . | . . . Salvage Created 1537 | 44 695 798 Parts 107 | 3 44 60 Haulers Intercepted 1 | . . 1 Recyclers Shooed 1 | . 1 . Parts Field Recycled . | . . . Retrieved Matter . | . . . Parts Self-Destructed . | . . . Prevented . | . . . Kills | -11 -10 -9 ------- Run | Scr Mat Mat Combat Hostiles Destroyed 44 | 1 17 26 Guns 14 | 1 13 . Cannons 29 | . 4 25 Classes Destroyed 10 | 1 4 5 Worker 4 | . . 4 Builder 1 | . 1 . Tunneler 1 | . . 1 Hauler 1 | . . 1 Recycler 1 | . 1 . Watcher 4 | . 2 2 Swarmer 17 | . 6 11 Grunt 24 | 1 11 12 Brawler 1 | . . 1 Sentry 2 | . . 2 Best Kill Streak 7 | 1 6 7 Combat Bots Only 6 | 1 6 5 Max Kills in Single Turn 2 | 1 1 2 Gunslinging . | . . . Exploded . | . . . Melee . | . . . Uniques/NPCs Destroyed . | . . . Combat | -11 -10 -9 -------- Run | Scr Mat Mat Damage Taken 2676 | 32 807 1837 Core 589 | . 187 402 Absorbed by Shields 33 | . . 33 Core Remaining (%) 62 | 100 25 . Volleys Fired 156 | 3 83 70 Largest 3 | 2 2 3 Hottest 201 | 40 136 201 Shots Fired 336 | 6 158 172 Gun 165 | 6 117 42 Cannon 171 | . 41 130 Launcher . | . . . Special . | . . . Kinetic 222 | 6 98 118 Thermal 114 | . 60 54 Explosive . | . . . Electromagnetic . | . . . Robot Hit Streak 6 | 2 6 6 Robot Miss Streak 6 | 2 5 6 Penetration Max . | . . . Secondary Targets 3 | . 3 . Max Gunslinging Chain 1 | . 1 . Shots Hit Robots 188 | 3 81 104 Core Hits 82 | 2 33 47 Critical Hits . | . . . Critical Kills . | . . . Critical Parts Destroyed . | . . . Melee Attacks 14 | . . 14 Impact 13 | . . 13 Slashing . | . . . Piercing . | . . . Sneak Attacks . | . . . Combat Hostiles . | . . . Follow-up Attacks . | . . . Damage Inflicted 2741 | 21 966 1754 Guns 824 | 21 585 218 Cannons 1644 | . 381 1263 Explosions . | . . . Melee 273 | . . 273 Ramming . | . . . Kinetic 1383 | 21 436 926 Thermal 1085 | . 530 555 Explosive . | . . . Electromagnetic . | . . . Impact 273 | . . 273 Slashing . | . . . Piercing . | . . . Highest Corruption 3 | . 3 . Average Corruption 2 | . 2 . Corruption Purged . | . . . Effects 32 | . 32 . Message Errors 7 | . 7 . Matter Fused 7 | . 7 . Heat Flow Errors 5 | . 5 . Energy Discharges 3 | . 3 . Data Loss (minor) 5 | . 5 . Targeting Errors 3 | . 3 . Weapon Failures 2 | . 2 . Overload Shots . | . . . Overflow Damage 62 | . 17 45 Projectiles 27 | . 17 10 Explosions . | . . . Melee 35 | . . 35 Knockbacks 5 | . . 5 Impact . | . . . Kinetic 5 | . . 5 Secondary . | . . . Self-Inflicted Damage . | . . . Shots . | . . . Rammed . | . . . Targets Rammed . | . . . Kicked . | . . . Crushed . | . . . Highest Temperature 516 | 6 516 364 Average Temperature 131 | 6 164 107 Received Heat Transfer 1070 | 18 351 701 Effects 8 | . 6 2 Shutdowns 1 | . 1 . Energy Bleed 1 | . 1 . Matter Decay 1 | . . 1 Damage (minor) 2 | . 1 1 Damage (major) 3 | . 3 . Siege Activations . | . . . Robots Corrupted . | . . . Combat Hostiles . | . . . Parts Fried 2 | . 1 1 Impact Corruptions 2 | . . 2 Robots Melted . | . . . Combat Hostiles . | . . . Parts Melted 2 | . 2 . Heat Transferred 2017 | . 1054 963 Parts Sabotaged . | . . . Parts Stolen . | . . . Parts Stripped . | . . . Power Chain Reactions . | . . . Missiles Intercepted . | . . . Alert | -11 -10 -9 ------- Run | Scr Mat Mat Peak Influence 333 | 20 333 329 Average Influence 106 | 3 113 107 Maximum Alert Level 1 | . 1 1 Low Security (%) 81 | 100 83 76 Level 1 18 | . 16 23 Level 2 . | . . . Level 3 . | . . . Level 4 . | . . . Level 5 . | . . . High Security . | . . . Max Security . | . . . Squads Dispatched 7 | . 3 4 Investigation 2 | . 1 1 Extermination . | . . . Reinforcement 5 | . 2 3 Assault . | . . . Garrison . | . . . Intercept . | . . . Construction Impeded . | . . . Haulers Reinforced . | . . . Stealth | -11 -10 -9 --------- Run | Scr Mat Mat Distress Signals 4 | . 3 1 Communications Jammed . | . . . Distress Signals . | . . . Times Spotted 72 | 1 30 41 Peak Tracking Total 6 | 1 6 5 Tactical Retreats 4 | . . 4 Traps | -11 -10 -9 ------- Run | Scr Mat Mat Traps Triggered 8 | . 6 2 Indirectly . | . . . Trap Hack Attempts . | . . . Triggered . | . . . Disarmed . | . . . Reprogrammed 2 | . 2 . Reused 1 | . 1 . Traps Extracted . | . . . Installed . | . . . Triggered 1 | . 1 . Machines | -11 -10 -9 ---------- Run | Scr Mat Mat Machines Disabled 2 | . 2 . Max in Single Turn 1 | . 1 . Machines Sabotaged . | . . . Garrisons Compromised . | . . . Overloaded Fab Kills . | . . . Fab Network Shutdowns . | . . . Hacking | -11 -10 -9 --------- Run | Scr Mat Mat Machines Accessed 12 | . 9 3 Terminals 8 | . 6 2 Fabricators . | . . . Repair Stations 1 | . 1 . Recycling Units 3 | . 2 1 Scanalyzers . | . . . Garrison Access . | . . . Total Hacks 43 | . 35 8 Successful 29 | . 23 6 Failed 14 | . 12 2 Catastrophic . | . . . Database Lockouts . | . . . Manual . | . . . Terminals 28 | . 21 7 Fabricators . | . . . Repair Stations 8 | . 8 . Recycling Units 7 | . 6 1 Scanalyzers . | . . . Garrison Access . | . . . Terminal Hacks 21 | . 16 5 Record 5 | . 5 . Prototype ID Bank 2 | . 1 1 Level Access Points 1 | . 1 . Branch Access Points 1 | . 1 . Repair Station Index 1 | . 1 . Alert Level 2 | . 2 . Locate Traps 1 | . 1 . Reprogram Traps 1 | . 1 . Dispatch Records 2 | . 2 . Reinforcement Status 1 | . . 1 Recall Investigation 1 | . 1 . Recall Reinforcements 1 | . . 1 Registered Components 1 | . . 1 Zone Layout 1 | . . 1 Fabricator Hacks . | . . . Repair Station Hacks 6 | . 6 . Scan Component 3 | . 3 . Repair 3 | . 3 . Recycling Unit Hacks 2 | . 1 1 Report Inventory 1 | . . 1 Retrieve Components 1 | . 1 . Scanalyzer . | . . . Garrison Access Hacks . | . . . Unauthorized Hacks . | . . . Terminals . | . . . Fabricators . | . . . Repair Stations . | . . . Recycling Units . | . . . Scanalyzers . | . . . Garrison Access . | . . . Data Cores Recovered . | . . . Used . | . . . Hacking Detections 8 | . 7 1 Full Trace Events 3 | . 3 . Feedback Events . | . . . Feedback Blocked . | . . . Robot Schematics Acquired . | . . . Robots Built . | . . . Matter . | . . . Time . | . . . Total Robot Build Rating . | . . . Part Schematics Acquired . | . . . Parts Built . | . . . Matter . | . . . Time . | . . . Total Part Build Rating . | . . . Parts Repaired 3 | . 3 . Time 78 | . 78 . Parts Recycled . | . . . Recycled Matter . | . . . Retrieved Matter . | . . . Retrieved Components 10 | . 10 . Parts Scanalyzed . | . . . Part Schematics Acquired . | . . . Parts Damaged . | . . . Bothacking | -11 -10 -9 ------------ Run | Scr Mat Mat Used RIF Installer . | . . . Robots Hacked . | . . . Non-combat . | . . . Combat . | . . . Robot Hacks Applied . | . . . Relay Couplers Released . | . . . Robots Rewired . | . . . Allies Hacked . | . . . Hacks Repelled . | . . . Allies | -11 -10 -9 -------- Run | Scr Mat Mat Total Allies . | . . . Largest Group . | . . . Highest-Rated Group . | . . . Highest-Rated Ally . | . . . Total Orders . | . . . Ally Attacks . | . . . Total Damage . | . . . Kills . | . . . Allies Corrupted . | . . . Allies Melted . | . . . Intel | -11 -10 -9 ------- Run | Scr Mat Mat Robot Analysis Total . | . . . Derelict Logs Recovered . | . . . Drone Launches . | . . . Drone Recoveries . | . . . Exploration | -11 -10 -9 ------------- Run | Scr Mat Mat Turns Passed 2924 | 120 1751 1053 Spaces Moved 1550 | 90 1002 458 Core 27 | 24 3 . Treads 45 | . . 45 Legs 1383 | 66 999 318 Wheels . | . . . Hover 95 | . . 95 Flight . | . . . Fastest Speed 50 | 50 120 116 Average Speed 145 | 101 143 158 Slowest Speed 350 | 120 350 300 Overloaded Moves . | . . . Propulsion Burnouts . | . . . Robots Hopped . | . . . Cave-ins Triggered . | . . . Exploration Rate (%) 41 | 8 93 24 Regions Visited 2 Branch Regions . Pre-discovered Areas . | . . . Known Exits Taken 1 | . 1 . Unknown Exits Taken 1 | 1 . . Scrap Searched . | . . . Spaces Dug . | . . . Terrain Destroyed . | . . . Melee . | . . . Projectile . | . . . AOE . | . . . Actions | -11 -10 -9 --------- Run | Scr Mat Mat Total 1910 | 111 1174 625 Wait 27 | . . 27 Move 1548 | 89 1001 458 Hop . | . . . Pick Up 65 | 9 36 20 Fast Attach . | . . . Attach 46 | 6 22 18 Detach 2 | . . 2 Swap 24 | 4 12 8 Drop 28 | . 20 8 Fire 156 | 3 83 70 Melee 14 | . . 14 Ram . | . . . Kick . | . . . Crush . | . . . Escape Stasis . | . . . Rewire . | . . . Trap . | . . . Miscellaneous . | . . . Route ------- -11/Scrapyard -10/Materials (discovered 4 exits: *Mat x3 / *Min) -9/Materials History --------- Turn | Location | Event 2 | -11/Scrapyard | Met Revision 17 88 | -11/Scrapyard | Discovered new exit (range 8) 121 | -11/Scrapyard | Entered Materials 207 | -10/Materials | Identified exit to Materials 305 | -10/Materials | Build established: Mutant 472 | -10/Materials | Repaired Sml. Storage Unit 472 | -10/Materials | Repaired Heat Sink 498 | -10/Materials | Repaired Ion Engine? 804 | -10/Materials | Core integrity fell below 50% 907 | -10/Materials | Discovered new exit (range 11) 1161 | -10/Materials | Identified exit to Mines 1872 | -10/Materials | Entered another Materials area 1872 | -9/Materials | Evolved 2 slots: Utility x1, Weapon x1 2423 | -9/Materials | Lost 3 parts (1p1n1w) 2775 | -9/Materials | Lost 7 parts (1p2n4w) 2881 | -9/Materials | Core integrity fell below 50% 2911 | -9/Materials | Core integrity fell below 20% 2925 | -9/Materials | Destroyed by G-34 Mercenary with Small Laser Last Messages --------------- K-01 Serf collects debris. K-01 Serf cleans the Neutrino Reactor. Destroyed Heat Sink. G-34 Mercenary system corrupted by crushing effect. G-34 Mercenary misfires. R-06 Scavenger inserts Wheel into recycling unit. K-01 Serf collects debris. Recycling unit begins recycling process. G-34 Mercenary IFF system glitched. K-01 Serf cleans the Neutrino Reactor. R-06 Scavenger inserts Structural Scanner into recycling unit. G-34 Mercenary misfires. R-06 Scavenger inserts Flight Unit into recycling unit. Recycling unit begins recycling process. G-34 Mercenary misfires. Recycling unit begins matter transfer process. K-01 Serf cleans the Fusion Modulator. R-06 Scavenger inserts Flight Unit into recycling unit. K-01 Serf cleans the Fusion Modulator. G-34 Mercenary misfires. Map ----- +----------------------------------------------------+ | ?????????????????????????????????????????????????? | | ?????????????????????????????????????????????????? | | ?????????????????????????????????????????????????? | | ?????????????????????????????????????????????????? | | ?????????????????????????????????????????????????? | | ?????????????????????????????????????????????????? | | ?????????????????????????????????????????????????? | | ?????????????????????????????????????????????????? | | ?????????????????????????????????????????????????? | | ?????????????????????????????????????????????????? | | ?????????????????????????????????????????????????? | | ?????????????????????????????????????????????????? | | ?????????????????????????????????????????????????? | | ?????????????????????????????????????????????????? | | ?????????????????????????????????????????????????? | | ??????????????????????? #????????????????????????? | | ???????????????????????? ###?????????????????????? | | ???????????????????????? ?????????????????????? | | ????????????????????????? ?????????????????????? | | ????????????????????????? ?????????????????????? | | ?????????????????????????#%#?????????????????##### | | ???????????????########### #??#####?????????? | | ???????????????# # ####"T"###???????? | | ???????????????# #% #???????? !% | | ???????????????# = # ####????? !! | | ???????????????# k"""%@ / ## #####?? ! | | ???????????????# "" """g# // # #?? | | ???????????????+ "Y """ # // #!/ "" #?? | | ???????????????# ""r # g t #! T" #?? | | ???????????????# r # # "" #?? | | ???????????????#######+### """ # #?? ? | | ???????????????????### #?# """ # ####+## | | ???????????????????# #% """ ! #+####### | | ???????????????????# %% % | | ???????????????????+ % % ! | | ???????????????????# % | | ???????????????????# ##"T"## ############[ == | | ???????????????????## #?###### ?????????## # | | ????????????????????# #??????# ????????#= # | | ????????????????????# #??????# ??????# # | | ????????????????????# #??????# ?????# * # | | ????????????????????# #??????# ## ????## =# | | ???????????????????? ???????# #?? #???# | | ???????????????????# ???????# ?????????# | | ???????????????????? ???????? ??????????# | | ???????????????????????????????? ??????????# | | ????????????????????????????????????????????# | | ????????????????????????????????????????????###### | | ?????????????????????????????????????????????????? | | ?????????????????????????????????????????????????? | +----------------------------------------------------+ Best States ------------- Heat Dissipation 52 Energy Generation 10 Energy Capacity 250 Matter Stores 300 Matter Capacity 300 Sight Range 16 Terrain Scan Density 10 Evasion (%) 50 Targeting Accuracy 5 Recoil Reduction 2 Item Schematics ----------------- None Robot Schematics ------------------ None Fabricated ------------ Nothing Alien Tech Used ----------------- None Achievements -------------- GoHome() Loot Pinata Novice Programmer Part-time Mechanic Risk Taker Challenges ------------ None Game ------ Seed ArmoredDisposableStabilizer Manual? 0 Play Time 00:52:47 Cumulative 2.1 hours Start 2020.07.30 @ 02:52:27 End 2020.07.30 @ 03:46:04 Sessions 1 Manual Loads 0 Difficulty Rogue Special Mode None Game No. 2 Rogue 2 Adventurer 0 Explorer 0 Win Type - Total 0 Types 0/0/0/0/0/0/0 Lore% 0 Gallery% 2 Achievement% 3 Wizard Run 0 Options --------- ASCII 0 Keyboard 0 Movement Mouse Keybinds 0 Fullscreen 1 Font 18/SmallcapsGlow Map View 76x50 Tactical HUD 0 Map Filters NONE Filters NONE Steam 1 RUN: b7720b6d-53f3-4433-ac3c-4c5d7dab7c86